[Event "Titled Tuesday Blitz November 08 Late 2022"]
[White "Zeynalli, Rashad"]
[Black "Grot, Blazej"]
[WhiteFideId "13403320"]
[BlackFideId "21835845"]
[WhiteElo "2125"]
[BlackElo "1822"]
[Result "1-0"]
[Round "02"]
[TimeControl "180+1"]
[Date "2022.11.09"]
[WhiteClock "0:00:15"]
[BlackClock "0:00:03"]

1. d4 {[%clk 0:02:51]}  Nf6 {[%clk 0:02:55]} 2. Bf4 {[%clk 0:02:51]}  d6 {[%clk 0:02:54]} 3. e3 {[%clk 0:02:52]}  Nbd7 {[%clk 0:02:54]} 4. Nf3 {[%clk 0:02:52]}  e5 {[%clk 0:02:54]} 5. dxe5 {[%clk 0:02:50]}  dxe5 {[%clk 0:02:55]} 6. Nxe5 {[%clk 0:02:50]}  Nxe5 {[%clk 0:02:51]} 7. Qxd8+ {[%clk 0:02:48]}  Kxd8 {[%clk 0:02:50]} 8. Bxe5 {[%clk 0:02:49]}  Bf5 {[%clk 0:02:51]} 9. Bd3 {[%clk 0:02:37]}  Be6 {[%clk 0:02:49]} 10. Nc3 {[%clk 0:02:31]}  c6 {[%clk 0:02:48]} 11. O-O-O {[%clk 0:02:29]}  Kc8 {[%clk 0:02:47]} 12. a3 {[%clk 0:02:23]}  h5 {[%clk 0:02:46]} 13. f3 {[%clk 0:02:14]}  b5 {[%clk 0:02:42]} 14. Ne4 {[%clk 0:02:12]}  Nd5 {[%clk 0:02:37]} 15. Rhe1 {[%clk 0:02:02]}  f6 {[%clk 0:02:33]} 16. Bd4 {[%clk 0:01:58]}  a5 {[%clk 0:02:29]} 17. Nc5 {[%clk 0:01:57]}  Bf7 {[%clk 0:02:28]} 18. Bf5+ {[%clk 0:01:54]}  Kc7 {[%clk 0:02:26]} 19. Ne6+ {[%clk 0:01:47]}  Bxe6 {[%clk 0:02:22]} 20. Bxe6 {[%clk 0:01:48]}  b4 {[%clk 0:02:19]} 21. a4 {[%clk 0:01:44]}  b3 {[%clk 0:02:13]} 22. c3 {[%clk 0:01:41]}  Nb6 {[%clk 0:02:11]} 23. Bxb6+ {[%clk 0:01:35]}  Kxb6 {[%clk 0:02:12]} 24. Bxb3 {[%clk 0:01:35]}  Bc5 {[%clk 0:02:10]} 25. Rd7 {[%clk 0:01:26]}  g5 {[%clk 0:01:51]} 26. e4 {[%clk 0:01:21]}  Rad8 {[%clk 0:01:50]} 27. Red1 {[%clk 0:01:20]}  Rxd7 {[%clk 0:01:49]} 28. Rxd7 {[%clk 0:01:21]}  h4 {[%clk 0:01:44]} 29. h3 {[%clk 0:01:17]}  Be3+ {[%clk 0:01:41]} 30. Kc2 {[%clk 0:01:16]}  Bf4 {[%clk 0:01:42]} 31. Bf7 {[%clk 0:01:07]}  Kc5 {[%clk 0:01:36]} 32. Rb7 {[%clk 0:00:56]}  Ra8 {[%clk 0:01:17]} 33. Be6 {[%clk 0:00:48]}  Kd6 {[%clk 0:01:15]} 34. Bf5 {[%clk 0:00:45]}  Kc5 {[%clk 0:01:10]} 35. Kd3 {[%clk 0:00:43]}  Rd8+ {[%clk 0:01:05]} 36. Bd7 {[%clk 0:00:40]}  Kd6 {[%clk 0:01:03]} 37. Bf5 {[%clk 0:00:35]}  Kc5+ {[%clk 0:01:02]} 38. Rd7 {[%clk 0:00:32]}  Rxd7+ {[%clk 0:00:51]} 39. Bxd7 {[%clk 0:00:33]}  Be5 {[%clk 0:00:51]} 40. Be8 {[%clk 0:00:28]}  Bf4 {[%clk 0:00:50]} 41. Kc2 {[%clk 0:00:25]}  Be5 {[%clk 0:00:46]} 42. Kb3 {[%clk 0:00:25]}  Bd6 {[%clk 0:00:45]} 43. Bf7 {[%clk 0:00:20]}  Bf4 {[%clk 0:00:30]} 44. Ka3 {[%clk 0:00:19]}  Bc1 {[%clk 0:00:29]} 45. Kb3 {[%clk 0:00:19]}  Bf4 {[%clk 0:00:29]} 46. Kc2 {[%clk 0:00:19]}  Be5 {[%clk 0:00:28]} 47. Kd3 {[%clk 0:00:18]}  Bf4 {[%clk 0:00:27]} 48. b3 {[%clk 0:00:16]}  Be5 {[%clk 0:00:26]} 49. Be8 {[%clk 0:00:17]}  Bf4 {[%clk 0:00:24]} 50. b4+ {[%clk 0:00:16]}  axb4 {[%clk 0:00:24]} 51. cxb4+ {[%clk 0:00:17]}  Kxb4 {[%clk 0:00:24]} 52. Bxc6 {[%clk 0:00:17]}  Be5 {[%clk 0:00:23]} 53. Be8 {[%clk 0:00:15]}  Bf4 {[%clk 0:00:23]} 54. Kd4 {[%clk 0:00:15]}  Be5+ {[%clk 0:00:23]} 55. Kd5 {[%clk 0:00:16]}  Bf4 {[%clk 0:00:17]} 56. Ke6 {[%clk 0:00:16]}  Be5 {[%clk 0:00:16]} 57. Ke7 {[%clk 0:00:16]}  Ka5 {[%clk 0:00:13]} 58. Bd7 {[%clk 0:00:16]}  Kb4 {[%clk 0:00:13]} 59. Ke6 {[%clk 0:00:16]}  Ka5 {[%clk 0:00:12]} 60. Kf5 {[%clk 0:00:15]}  Kb4 {[%clk 0:00:05]} 61. f4 {[%clk 0:00:16]}  gxf4 {[%clk 0:00:06]} 62. Kg4 {[%clk 0:00:16]}  Kc5 {[%clk 0:00:03]} 63. Kxh4 {[%clk 0:00:16]}  Kd6 {[%clk 0:00:03]} 64. Bb5 {[%clk 0:00:16]}  Bd4 {[%clk 0:00:02]} 65. Kg4 {[%clk 0:00:16]}  Ke5 {[%clk 0:00:02]} 66. h4 {[%clk 0:00:16]}  Kxe4 {[%clk 0:00:02]} 67. h5 {[%clk 0:00:15]}  f5+ {[%clk 0:00:02]} 68. Kg5 {[%clk 0:00:14]}  f3 {[%clk 0:00:02]} 69. Bc6+ {[%clk 0:00:14]}  Ke5 {[%clk 0:00:02]} 70. gxf3 {[%clk 0:00:15]}  Ke6 {[%clk 0:00:02]} 71. Kg6 {[%clk 0:00:15]}  Be5 {[%clk 0:00:03]} 72. h6 {[%clk 0:00:14]}  f4 {[%clk 0:00:03]} 73. h7 {[%clk 0:00:14]}  Ke7 {[%clk 0:00:04]} 74. a5 {[%clk 0:00:15]}  Kf8 {[%clk 0:00:04]} 75. a6 {[%clk 0:00:15]}  Bd4 {[%clk 0:00:04]} 76. Kf5 {[%clk 0:00:14]}  Ba7 {[%clk 0:00:05]} 77. h8=Q+ {[%clk 0:00:14]}  Kf7 {[%clk 0:00:04]} 78. Qh7+ {[%clk 0:00:15]}  Kf8 {[%clk 0:00:03]} 79. Qxa7 {[%clk 0:00:15]} 1-0


[Site "https://www.chess.com"]

[Event "Titled Tuesday Blitz November 08 Late 2022"]
[White "Alfaro, William"]
[Black "Santos Flores, Alberto"]
[WhiteFideId "6100457"]
[BlackFideId "3601234"]
[WhiteElo "2096"]
[BlackElo "2235"]
[Result "0-1"]
[Round "03"]
[TimeControl "180+1"]
[Date "2022.11.09"]
[WhiteClock "0:02:13"]
[BlackClock "0:01:53"]

1. Nf3 {[%clk 0:02:58]}  c5 {[%clk 0:02:23]} 2. g3 {[%clk 0:02:58]}  g6 {[%clk 0:02:23]} 3. Bg2 {[%clk 0:02:58]}  Nc6 {[%clk 0:02:22]} 4. O-O {[%clk 0:02:59]}  Bg7 {[%clk 0:02:21]} 5. d3 {[%clk 0:02:59]}  e6 {[%clk 0:02:20]} 6. e4 {[%clk 0:02:59]}  Nge7 {[%clk 0:02:20]} 7. c3 {[%clk 0:03:00]}  O-O {[%clk 0:02:20]} 8. Be3 {[%clk 0:03:00]}  b6 {[%clk 0:02:20]} 9. Qd2 {[%clk 0:03:01]}  d5 {[%clk 0:02:19]} 10. Bh6 {[%clk 0:02:59]}  dxe4 {[%clk 0:02:18]} 11. dxe4 {[%clk 0:02:59]}  Qxd2 {[%clk 0:02:18]} 12. Bxd2 {[%clk 0:03:00]}  Ba6 {[%clk 0:02:18]} 13. Re1 {[%clk 0:03:00]}  Rfd8 {[%clk 0:02:18]} 14. Bf4 {[%clk 0:02:58]}  Rd7 {[%clk 0:02:16]} 15. Na3 {[%clk 0:02:53]}  Rad8 {[%clk 0:02:16]} 16. Nc2 {[%clk 0:02:53]}  Bd3 {[%clk 0:02:14]} 17. Na3 {[%clk 0:02:49]}  Ba6 {[%clk 0:02:14]} 18. h3 {[%clk 0:02:45]}  h6 {[%clk 0:02:07]} 19. h4 {[%clk 0:02:35]}  Kh7 {[%clk 0:01:54]} 20. Rab1 {[%clk 0:02:27]}  e5 {[%clk 0:01:53]} 21. Be3 {[%clk 0:02:23]}  Bd3 {[%clk 0:01:53]} 22. Rbd1 {[%clk 0:02:17]}  Bxe4 {[%clk 0:01:53]} 23. Rxd7 {[%clk 0:02:16]}  Rxd7 {[%clk 0:01:54]} 24. Bxc5 {[%clk 0:02:16]}  Bxf3 {[%clk 0:01:55]} 25. Bxe7 {[%clk 0:02:14]}  Bxg2 {[%clk 0:01:55]} 26. Kxg2 {[%clk 0:02:13]}  Rxe7 {[%clk 0:01:54]} 27. Nb5 {[%clk 0:02:13]}  Rd7 {[%clk 0:01:53]} 0-1


[Site "https://www.chess.com"]

[Event "Titled Tuesday Blitz November 08 Late 2022"]
[White "Andreikin, Dmitry"]
[Black "Cabarkapa, Novak"]
[WhiteFideId "4158814"]
[BlackFideId "943746"]
[WhiteElo "2736"]
[BlackElo "2390"]
[Result "0-1"]
[Round "03"]
[TimeControl "180+1"]
[Date "2022.11.08"]
[WhiteClock "0:00:04"]
[BlackClock "0:00:17"]

1. e4 {[%clk 0:03:00]}  e6 {[%clk 0:02:58]} 2. d4 {[%clk 0:03:00]}  d5 {[%clk 0:02:59]} 3. Nc3 {[%clk 0:03:00]}  Nf6 {[%clk 0:02:59]} 4. e5 {[%clk 0:03:00]}  Nfd7 {[%clk 0:03:00]} 5. f4 {[%clk 0:03:00]}  c5 {[%clk 0:03:00]} 6. Nf3 {[%clk 0:03:00]}  Nc6 {[%clk 0:03:01]} 7. Be3 {[%clk 0:03:01]}  Be7 {[%clk 0:03:01]} 8. Qd2 {[%clk 0:02:58]}  O-O {[%clk 0:03:01]} 9. h4 {[%clk 0:02:58]}  f6 {[%clk 0:02:58]} 10. exf6 {[%clk 0:02:52]}  Nxf6 {[%clk 0:02:57]} 11. dxc5 {[%clk 0:02:41]}  Ng4 {[%clk 0:02:56]} 12. O-O-O {[%clk 0:02:37]}  Qa5 {[%clk 0:02:51]} 13. Bb5 {[%clk 0:02:34]}  a6 {[%clk 0:02:30]} 14. Bxc6 {[%clk 0:02:26]}  bxc6 {[%clk 0:02:31]} 15. Bd4 {[%clk 0:01:57]}  Rb8 {[%clk 0:02:24]} 16. g3 {[%clk 0:01:48]}  Bxc5 {[%clk 0:02:08]} 17. Bxc5 {[%clk 0:01:47]}  Qxc5 {[%clk 0:02:09]} 18. Qd4 {[%clk 0:01:43]}  Qa5 {[%clk 0:02:03]} 19. Ne5 {[%clk 0:01:34]}  c5 {[%clk 0:01:47]} 20. Qa4 {[%clk 0:01:34]}  Qb6 {[%clk 0:01:19]} 21. Nxg4 {[%clk 0:01:33]}  Qxb2+ {[%clk 0:01:19]} 22. Kd2 {[%clk 0:01:34]}  Rb4 {[%clk 0:01:20]} 23. Qa5 {[%clk 0:01:17]}  Rd4+ {[%clk 0:01:16]} 24. Ke1 {[%clk 0:00:50]}  Qxc2 {[%clk 0:01:15]} 25. Ne3 {[%clk 0:00:42]}  Qg6 {[%clk 0:01:07]} 26. Kf2 {[%clk 0:00:38]}  e5 {[%clk 0:01:04]} 27. Qxc5 {[%clk 0:00:34]}  Rxd1 {[%clk 0:00:49]} 28. Ncxd1 {[%clk 0:00:27]}  exf4 {[%clk 0:00:47]} 29. gxf4 {[%clk 0:00:28]}  Rxf4+ {[%clk 0:00:46]} 30. Ke1 {[%clk 0:00:27]}  Be6 {[%clk 0:00:37]} 31. Rf1 {[%clk 0:00:17]}  Qg3+ {[%clk 0:00:30]} 32. Kd2 {[%clk 0:00:17]}  d4 {[%clk 0:00:27]} 33. Rxf4 {[%clk 0:00:07]}  Qxf4 {[%clk 0:00:28]} 34. Qg5 {[%clk 0:00:04]}  dxe3+ {[%clk 0:00:25]} 35. Nxe3 {[%clk 0:00:05]}  Qd4+ {[%clk 0:00:19]} 36. Ke2 {[%clk 0:00:06]}  Bxa2 {[%clk 0:00:19]} 37. h5 {[%clk 0:00:05]}  Bc4+ {[%clk 0:00:19]} 38. Kf2 {[%clk 0:00:04]}  Qd2+ {[%clk 0:00:19]} 39. Kg3 {[%clk 0:00:04]}  Qd6+ {[%clk 0:00:18]} 40. Kf2 {[%clk 0:00:03]}  Bf7 {[%clk 0:00:17]} 41. Qf5 {[%clk 0:00:03]}  Qf6 {[%clk 0:00:16]} 42. Qxf6 {[%clk 0:00:02]}  gxf6 {[%clk 0:00:17]} 43. Ng4 {[%clk 0:00:01]}  Kg7 {[%clk 0:00:18]} 44. h6+ {[%clk 0:00:02]}  Kg6 {[%clk 0:00:18]} 45. Kg3 {[%clk 0:00:02]}  Kg5 {[%clk 0:00:18]} 46. Nf2 {[%clk 0:00:02]}  Kxh6 {[%clk 0:00:18]} 47. Kf4 {[%clk 0:00:03]}  Kg6 {[%clk 0:00:18]} 48. Ne4 {[%clk 0:00:04]}  a5 {[%clk 0:00:19]} 49. Nc5 {[%clk 0:00:03]}  Be8 {[%clk 0:00:18]} 50. Ne4 {[%clk 0:00:03]}  a4 {[%clk 0:00:18]} 51. Nd6 {[%clk 0:00:04]}  Bd7 {[%clk 0:00:17]} 52. Nc4 {[%clk 0:00:04]}  Be6 {[%clk 0:00:18]} 53. Nd2 {[%clk 0:00:03]}  a3 {[%clk 0:00:17]} 54. Nf3 {[%clk 0:00:04]}  a2 {[%clk 0:00:17]} 0-1


[Site "https://www.chess.com"]

[Event "Titled Tuesday Blitz November 08 Late 2022"]
[White "Antonova, Nadezhda"]
[Black "Becerra, Juan David"]
[WhiteFideId "14700182"]
[BlackFideId "4404998"]
[WhiteElo "1813"]
[BlackElo "2281"]
[Result "0-1"]
[Round "03"]
[TimeControl "180+1"]
[Date "2022.11.09"]
[WhiteClock "0:00:15"]
[BlackClock "0:01:10"]

1. Nf3 {[%clk 0:02:56]}  d5 {[%clk 0:02:59]} 2. b3 {[%clk 0:02:56]}  Nf6 {[%clk 0:02:54]} 3. Bb2 {[%clk 0:02:53]}  Bg4 {[%clk 0:02:54]} 4. e3 {[%clk 0:02:49]}  Nbd7 {[%clk 0:02:54]} 5. h3 {[%clk 0:02:47]}  Bh5 {[%clk 0:02:50]} 6. g4 {[%clk 0:02:47]}  Bg6 {[%clk 0:02:50]} 7. Nh4 {[%clk 0:02:40]}  c6 {[%clk 0:02:50]} 8. d3 {[%clk 0:02:37]}  Qc7 {[%clk 0:02:50]} 9. Nxg6 {[%clk 0:02:35]}  hxg6 {[%clk 0:02:50]} 10. Bg2 {[%clk 0:02:35]}  g5 {[%clk 0:02:45]} 11. Nd2 {[%clk 0:02:33]}  e6 {[%clk 0:02:45]} 12. Qe2 {[%clk 0:02:30]}  Bd6 {[%clk 0:02:45]} 13. c4 {[%clk 0:02:24]}  a5 {[%clk 0:02:43]} 14. a3 {[%clk 0:02:17]}  Ne5 {[%clk 0:02:33]} 15. O-O {[%clk 0:02:12]}  Ng6 {[%clk 0:02:32]} 16. cxd5 {[%clk 0:02:03]}  exd5 {[%clk 0:02:31]} 17. Rac1 {[%clk 0:01:56]}  O-O-O {[%clk 0:02:20]} 18. b4 {[%clk 0:01:41]}  axb4 {[%clk 0:02:18]} 19. axb4 {[%clk 0:01:40]}  Bxb4 {[%clk 0:02:18]} 20. Nf3 {[%clk 0:01:35]}  Nxg4 {[%clk 0:02:05]} 21. hxg4 {[%clk 0:01:17]}  Nh4 {[%clk 0:02:04]} 22. Nxg5 {[%clk 0:01:02]}  Nxg2 {[%clk 0:01:56]} 23. Kxg2 {[%clk 0:01:02]}  Rh2+ {[%clk 0:01:54]} 24. Kf3 {[%clk 0:01:01]}  Rdh8 {[%clk 0:01:54]} 25. Qc2 {[%clk 0:00:54]}  Qe7 {[%clk 0:01:38]} 26. Qa4 {[%clk 0:00:35]}  Qxg5 {[%clk 0:01:20]} 27. Qxb4 {[%clk 0:00:33]}  R8h3+ {[%clk 0:01:20]} 28. Ke2 {[%clk 0:00:31]}  Qxe3+ {[%clk 0:01:12]} 29. Kd1 {[%clk 0:00:27]}  Qxd3+ {[%clk 0:01:12]} 30. Qd2 {[%clk 0:00:25]}  Qxf1+ {[%clk 0:01:12]} 31. Kc2 {[%clk 0:00:23]}  Qxf2 {[%clk 0:01:09]} 32. Qxf2 {[%clk 0:00:15]}  Rxf2+ {[%clk 0:01:10]} 0-1


[Site "https://www.chess.com"]

[Event "Titled Tuesday Blitz November 08 Late 2022"]
[White "Aqib Javaid Butt"]
[Black "Arnold, Ken"]
[WhiteFideId "7801262"]
[BlackFideId "2056836"]
[WhiteElo "1659"]
[BlackElo "2313"]
[Result "0-1"]
[Round "03"]
[TimeControl "180+1"]
[Date "2022.11.09"]
[WhiteClock "0:00:30"]
[BlackClock "0:01:16"]

1. d4 {[%clk 0:02:53]}  c6 {[%clk 0:02:59]} 2. e4 {[%clk 0:02:51]}  d5 {[%clk 0:02:59]} 3. Nc3 {[%clk 0:02:52]}  dxe4 {[%clk 0:02:59]} 4. Nxe4 {[%clk 0:02:53]}  Bf5 {[%clk 0:02:59]} 5. Ng3 {[%clk 0:02:54]}  Bg6 {[%clk 0:02:59]} 6. Nf3 {[%clk 0:02:54]}  Nd7 {[%clk 0:02:59]} 7. h4 {[%clk 0:02:54]}  h6 {[%clk 0:03:00]} 8. h5 {[%clk 0:02:50]}  Bh7 {[%clk 0:03:00]} 9. Bd3 {[%clk 0:02:51]}  Bxd3 {[%clk 0:03:00]} 10. Qxd3 {[%clk 0:02:51]}  Ngf6 {[%clk 0:03:00]} 11. Bd2 {[%clk 0:02:38]}  e6 {[%clk 0:02:58]} 12. O-O-O {[%clk 0:02:38]}  Qc7 {[%clk 0:02:56]} 13. Ne4 {[%clk 0:02:25]}  O-O-O {[%clk 0:02:51]} 14. Kb1 {[%clk 0:02:20]}  Nc5 {[%clk 0:02:44]} 15. Nxc5 {[%clk 0:02:15]}  Bxc5 {[%clk 0:02:43]} 16. Qc4 {[%clk 0:01:45]}  Bd6 {[%clk 0:02:38]} 17. Bb4 {[%clk 0:01:37]}  b5 {[%clk 0:02:36]} 18. Qb3 {[%clk 0:01:35]}  Kb7 {[%clk 0:02:29]} 19. Rhe1 {[%clk 0:01:14]}  Bxb4 {[%clk 0:02:16]} 20. Qxb4 {[%clk 0:01:13]}  Nd5 {[%clk 0:02:13]} 21. Qd2 {[%clk 0:01:07]}  Nb6 {[%clk 0:02:12]} 22. Ne5 {[%clk 0:00:57]}  Rd5 {[%clk 0:02:11]} 23. Qf4 {[%clk 0:00:56]}  f6 {[%clk 0:02:06]} 24. Ng6 {[%clk 0:00:55]}  Rhd8 {[%clk 0:01:56]} 25. Qxc7+ {[%clk 0:00:48]}  Kxc7 {[%clk 0:01:55]} 26. Nf4 {[%clk 0:00:38]}  R8d7 {[%clk 0:01:37]} 27. Nxe6+ {[%clk 0:00:37]}  Kb8 {[%clk 0:01:34]} 28. c3 {[%clk 0:00:35]}  Rxh5 {[%clk 0:01:29]} 29. Nc5 {[%clk 0:00:31]}  Rd8 {[%clk 0:01:17]} 30. Re7 {[%clk 0:00:30]}  Rxc5 {[%clk 0:01:16]} 0-1


[Site "https://www.chess.com"]

[Event "Titled Tuesday Blitz November 08 Late 2022"]
[White "Arencibia Monduy, Antonio"]
[Black "Hristodoulou, Panagiotis"]
[WhiteFideId "3507939"]
[BlackFideId "4214340"]
[WhiteElo "2478"]
[BlackElo "2674"]
[Result "0-1"]
[Round "03"]
[TimeControl "180+1"]
[Date "2022.11.09"]
[WhiteClock "0:00:06"]
[BlackClock "0:00:13"]

1. e4 {[%clk 0:02:59]}  e5 {[%clk 0:02:50]} 2. Bc4 {[%clk 0:02:59]}  Nf6 {[%clk 0:02:50]} 3. d3 {[%clk 0:03:00]}  Nc6 {[%clk 0:02:41]} 4. Nf3 {[%clk 0:03:00]}  h6 {[%clk 0:02:40]} 5. c3 {[%clk 0:03:00]}  d6 {[%clk 0:02:37]} 6. Bb3 {[%clk 0:03:00]}  g6 {[%clk 0:02:37]} 7. O-O {[%clk 0:03:01]}  Bg7 {[%clk 0:02:38]} 8. Re1 {[%clk 0:03:02]}  O-O {[%clk 0:02:37]} 9. h3 {[%clk 0:03:02]}  a5 {[%clk 0:02:30]} 10. d4 {[%clk 0:03:01]}  Re8 {[%clk 0:02:24]} 11. Nbd2 {[%clk 0:02:48]}  Bd7 {[%clk 0:02:16]} 12. a4 {[%clk 0:02:35]}  exd4 {[%clk 0:01:58]} 13. cxd4 {[%clk 0:02:36]}  Nb4 {[%clk 0:01:58]} 14. e5 {[%clk 0:02:28]}  Nfd5 {[%clk 0:01:52]} 15. Nc4 {[%clk 0:02:18]}  Bf5 {[%clk 0:01:47]} 16. exd6 {[%clk 0:02:00]}  Rxe1+ {[%clk 0:01:44]} 17. Qxe1 {[%clk 0:01:56]}  cxd6 {[%clk 0:01:43]} 18. Bd2 {[%clk 0:01:39]}  Bc2 {[%clk 0:01:37]} 19. Bxb4 {[%clk 0:01:34]}  Nxb4 {[%clk 0:01:22]} 20. Qc3 {[%clk 0:01:15]}  Bd3 {[%clk 0:01:15]} 21. Rd1 {[%clk 0:01:08]}  Be2 {[%clk 0:01:13]} 22. Re1 {[%clk 0:01:06]}  Bd3 {[%clk 0:01:12]} 23. Re3 {[%clk 0:01:05]}  Bf5 {[%clk 0:01:09]} 24. Qd2 {[%clk 0:01:00]}  Rc8 {[%clk 0:01:08]} 25. d5 {[%clk 0:00:53]}  h5 {[%clk 0:00:46]} 26. Re1 {[%clk 0:00:50]}  Bf6 {[%clk 0:00:39]} 27. Nd4 {[%clk 0:00:48]}  Bd3 {[%clk 0:00:33]} 28. Nxd6 {[%clk 0:00:19]}  Qxd6 {[%clk 0:00:30]} 29. Nb5 {[%clk 0:00:19]}  Bxb5 {[%clk 0:00:29]} 30. axb5 {[%clk 0:00:19]}  b6 {[%clk 0:00:29]} 31. g3 {[%clk 0:00:14]}  h4 {[%clk 0:00:28]} 32. g4 {[%clk 0:00:13]}  Kg7 {[%clk 0:00:28]} 33. Kg2 {[%clk 0:00:13]}  Rc5 {[%clk 0:00:27]} 34. Rd1 {[%clk 0:00:12]}  Rxb5 {[%clk 0:00:26]} 35. Ba4 {[%clk 0:00:13]}  Rc5 {[%clk 0:00:26]} 36. Bb3 {[%clk 0:00:13]}  Be5 {[%clk 0:00:23]} 37. Qe3 {[%clk 0:00:13]}  b5 {[%clk 0:00:20]} 38. Re1 {[%clk 0:00:10]}  a4 {[%clk 0:00:19]} 39. Bd1 {[%clk 0:00:10]}  Qxd5+ {[%clk 0:00:18]} 40. Bf3 {[%clk 0:00:10]}  Qd4 {[%clk 0:00:16]} 41. Qg5 {[%clk 0:00:10]}  Qf4 {[%clk 0:00:17]} 42. Qd8 {[%clk 0:00:09]}  Qh2+ {[%clk 0:00:16]} 43. Kf1 {[%clk 0:00:09]}  Qxh3+ {[%clk 0:00:17]} 44. Bg2 {[%clk 0:00:10]}  Qxg4 {[%clk 0:00:17]} 45. Qe7 {[%clk 0:00:09]}  Qc4+ {[%clk 0:00:17]} 46. Kg1 {[%clk 0:00:09]}  Nc6 {[%clk 0:00:17]} 47. Qe8 {[%clk 0:00:08]}  Nd4 {[%clk 0:00:17]} 48. Re4 {[%clk 0:00:07]}  Qc1+ {[%clk 0:00:16]} 49. Bf1 {[%clk 0:00:07]}  Nf3+ {[%clk 0:00:17]} 50. Kg2 {[%clk 0:00:07]}  Ne1+ {[%clk 0:00:18]} 51. Kg1 {[%clk 0:00:07]}  Nf3+ {[%clk 0:00:17]} 52. Kg2 {[%clk 0:00:08]}  Qg5+ {[%clk 0:00:17]} 53. Kh3 {[%clk 0:00:07]}  Qf5+ {[%clk 0:00:17]} 54. Rg4 {[%clk 0:00:07]}  Ng1+ {[%clk 0:00:17]} 55. Kg2 {[%clk 0:00:05]}  Qxg4+ {[%clk 0:00:17]} 56. Kh1 {[%clk 0:00:06]}  Nf3 {[%clk 0:00:13]} 0-1


[Site "https://www.chess.com"]

[Event "Titled Tuesday Blitz November 08 Late 2022"]
[White "Ashiku, Franc"]
[Black "Forgacs, Attila Jr."]
[WhiteFideId "4700066"]
[BlackFideId "773654"]
[WhiteElo "2619"]
[BlackElo "2440"]
[Result "0-1"]
[Round "03"]
[TimeControl "180+1"]
[Date "2022.11.09"]
[WhiteClock "0:00:11"]
[BlackClock "0:00:12"]

1. d4 {[%clk 0:03:00]}  Nf6 {[%clk 0:02:59]} 2. c4 {[%clk 0:03:01]}  g6 {[%clk 0:03:00]} 3. Nf3 {[%clk 0:03:01]}  Bg7 {[%clk 0:03:00]} 4. g3 {[%clk 0:03:01]}  O-O {[%clk 0:03:00]} 5. Bg2 {[%clk 0:03:02]}  d6 {[%clk 0:03:00]} 6. Nc3 {[%clk 0:03:01]}  Nc6 {[%clk 0:03:00]} 7. d5 {[%clk 0:02:59]}  Na5 {[%clk 0:02:59]} 8. Nd2 {[%clk 0:02:59]}  c5 {[%clk 0:02:58]} 9. O-O {[%clk 0:02:59]}  a6 {[%clk 0:02:58]} 10. Qc2 {[%clk 0:02:59]}  Rb8 {[%clk 0:02:58]} 11. b3 {[%clk 0:02:56]}  b5 {[%clk 0:02:56]} 12. Rb1 {[%clk 0:02:56]}  bxc4 {[%clk 0:02:48]} 13. bxc4 {[%clk 0:02:53]}  Bd7 {[%clk 0:02:36]} 14. Bb2 {[%clk 0:02:49]}  Qc7 {[%clk 0:02:34]} 15. Ba1 {[%clk 0:02:33]}  e6 {[%clk 0:02:34]} 16. dxe6 {[%clk 0:02:21]}  fxe6 {[%clk 0:02:29]} 17. Rbd1 {[%clk 0:02:10]}  Nc6 {[%clk 0:02:29]} 18. Bxc6 {[%clk 0:01:40]}  Bxc6 {[%clk 0:02:27]} 19. Nce4 {[%clk 0:01:39]}  Nxe4 {[%clk 0:02:19]} 20. Bxg7 {[%clk 0:01:29]}  Ng5 {[%clk 0:02:14]} 21. h4 {[%clk 0:01:17]}  Nh3+ {[%clk 0:02:05]} 22. Kh2 {[%clk 0:01:16]}  Rxf2+ {[%clk 0:01:47]} 23. Rxf2 {[%clk 0:00:59]}  Nxf2 {[%clk 0:01:48]} 24. Ba1 {[%clk 0:00:58]}  Nxd1 {[%clk 0:01:40]} 25. Qxd1 {[%clk 0:00:59]}  Rf8 {[%clk 0:01:38]} 26. Nf3 {[%clk 0:00:51]}  Bxf3 {[%clk 0:01:28]} 27. exf3 {[%clk 0:00:52]}  Qc6 {[%clk 0:01:29]} 28. f4 {[%clk 0:00:49]}  d5 {[%clk 0:01:27]} 29. Be5 {[%clk 0:00:44]}  d4 {[%clk 0:01:19]} 30. h5 {[%clk 0:00:28]}  Qe4 {[%clk 0:01:15]} 31. Qb3 {[%clk 0:00:27]}  Qe2+ {[%clk 0:01:05]} 32. Kg1 {[%clk 0:00:27]}  Qe1+ {[%clk 0:01:03]} 33. Kh2 {[%clk 0:00:24]}  Qe2+ {[%clk 0:01:04]} 34. Kg1 {[%clk 0:00:24]}  Qe3+ {[%clk 0:00:47]} 35. Qxe3 {[%clk 0:00:17]}  dxe3 {[%clk 0:00:48]} 36. hxg6 {[%clk 0:00:15]}  hxg6 {[%clk 0:00:45]} 37. Kf1 {[%clk 0:00:15]}  Rd8 {[%clk 0:00:39]} 38. Ke2 {[%clk 0:00:16]}  Rd2+ {[%clk 0:00:38]} 39. Kxe3 {[%clk 0:00:17]}  Rxa2 {[%clk 0:00:38]} 40. Bd6 {[%clk 0:00:18]}  Ra3+ {[%clk 0:00:33]} 41. Ke4 {[%clk 0:00:16]}  Rxg3 {[%clk 0:00:31]} 42. Bxc5 {[%clk 0:00:16]}  Kf7 {[%clk 0:00:28]} 43. Bd6 {[%clk 0:00:14]}  a5 {[%clk 0:00:24]} 44. c5 {[%clk 0:00:15]}  Rc3 {[%clk 0:00:22]} 45. Kd4 {[%clk 0:00:15]}  Rc1 {[%clk 0:00:21]} 46. Kd3 {[%clk 0:00:07]}  Ke8 {[%clk 0:00:14]} 47. Kd2 {[%clk 0:00:08]}  Rf1 {[%clk 0:00:11]} 48. c6 {[%clk 0:00:08]}  Kd8 {[%clk 0:00:09]} 49. Kc2 {[%clk 0:00:08]}  Kc8 {[%clk 0:00:08]} 50. Kb3 {[%clk 0:00:09]}  Rd1 {[%clk 0:00:08]} 51. Be5 {[%clk 0:00:09]}  Rd5 {[%clk 0:00:07]} 52. Ka4 {[%clk 0:00:08]}  g5 {[%clk 0:00:08]} 53. fxg5 {[%clk 0:00:01]}  Rxe5 {[%clk 0:00:08]} 54. g6 {[%clk 0:00:02]}  Rg5 {[%clk 0:00:08]} 55. g7 {[%clk 0:00:03]}  Rxg7 {[%clk 0:00:08]} 56. Kxa5 {[%clk 0:00:04]}  Rc7 {[%clk 0:00:09]} 57. Kb6 {[%clk 0:00:05]}  Kd8 {[%clk 0:00:08]} 58. Kc5 {[%clk 0:00:06]}  Re7 {[%clk 0:00:08]} 59. Kb6 {[%clk 0:00:07]}  Kc8 {[%clk 0:00:09]} 60. Kc5 {[%clk 0:00:07]}  Re8 {[%clk 0:00:09]} 61. Kd6 {[%clk 0:00:08]}  e5 {[%clk 0:00:10]} 62. c7 {[%clk 0:00:08]}  e4 {[%clk 0:00:10]} 63. Kc6 {[%clk 0:00:09]}  e3 {[%clk 0:00:11]} 64. Kb6 {[%clk 0:00:10]}  e2 {[%clk 0:00:11]} 65. Kc6 {[%clk 0:00:11]}  e1=Q {[%clk 0:00:12]} 0-1


[Site "https://www.chess.com"]